Cogmind - Beta 9.1 @@@ ROGUE MODE // 2019.10.31 @ 03:28:57 // Halloween2019/Abominations Player: zapruda Result: Self-destructed Performance ------------- Evolutions (1) 500 Regions Visited (2) 400 Robots Destroyed (11) 55 Value Destroyed (569) 569 Prototype IDs (0) 0 Alien Tech Used (0) 0 Bonus (0) 0 TOTAL SCORE: 1524 Bonus ------- None Cogmind --------- Core Integrity 217/400 Matter 48/300 Energy 19/100 System Corruption 0% Temperature Cool (0) Location -9/Materials Parts ------- Power (1) Propulsion (4) Utility (2) Cooling System ECM Suite Weapon (2) Heavy Assault Rifle Shotgun Inventory (4) Peak State ------------ Power Ion Engine Propulsion Light Treads VTOL Module VTOL Module VTOL Module Utility Small Storage Unit ECM Suite Weapon Shotgun Shotgun Inventory Heavy EM Pulse Gun Shotgun Shotgun [Rating: 14] Favorites ----------- Power Ion Engine Engine Ion Engine Propulsion VTOL Module Treads Light Treads Flight Unit VTOL Module Utility Small Storage Unit Device ECM Suite Storage Small Storage Unit Weapon Shotgun Energy Gun Heavy EM Pulse Gun Ballistic Gun Shotgun Launcher Rocket Launcher Build | -11 -10 -9 ------- Run | Scr Mat Mat Slots Evolved 2 | . . 2 Power . | . . . Propulsion 2 | . . 2 Utility . | . . . Weapon . | . . . Parts Attached 25 | 6 6 13 Power 1 | 1 . . Engine 1 | 1 . . Core . | . . . Reactor . | . . . Propulsion 8 | 2 3 3 Treads 4 | 2 1 1 Leg . | . . . Wheel . | . . . Hover . | . . . Flight 4 | . 2 2 Utility 4 | 1 1 2 Device 3 | . 1 2 Storage 1 | 1 . . Processor . | . . . Hackware . | . . . Protection . | . . . Artifact . | . . . Weapon 12 | 2 2 8 Energy Gun 1 | . . 1 Energy Cannon . | . . . Ballistic Gun 8 | 2 2 4 Ballistic Cannon . | . . . Launcher 3 | . . 3 Special Weapon . | . . . Impact Weapon . | . . . Slashing Weapon . | . . . Piercing Weapon . | . . . Special Melee Weapon . | . . . Unidentified Prototypes . | . . . Parts Lost 9 | . . 9 Power 1 | . . 1 Propulsion 4 | . . 4 Utility . | . . . Weapon 4 | . . 4 Highest Loss Streak 8 | . . 8 Average Slot Usage (%) 72 | . 95 57 Engine 10 | . 14 8 Treads 10 | . 21 3 Flight 13 | . 6 17 Device 6 | . 9 4 Storage 7 | . 14 2 Ballistic Gun 15 | . 28 7 Launcher 7 | . . 12 Naked Turns . | . . . Heaviest Build 16 | 13 16 15 Greatest Support 40 | 40 40 20 Greatest Overweight (x) 1 | . 1 1 Average Overweight (x) . | . . . Largest Inventory Capacity 6 | 6 6 6 Average Capacity 5 | 5 6 4 Most Carried 6 | 3 6 6 Average Carried 3 | 2 4 3 Final Capacity 6 | 6 6 4 Final Carried 5 | 3 5 . Class Distribution -------------------- 100% | Mutant Dominant Class ---------------- Mutant | -10/Materials Mutant | -9/Materials Resources | -11 -10 -9 ----------- Run | Scr Mat Mat Matter Collected 535 | 197 60 278 Remotely . | . . . Salvage Created 418 | . 244 174 Parts 16 | . 10 6 Haulers Intercepted . | . . . Recyclers Shooed . | . . . Parts Field Recycled . | . . . Retrieved Matter . | . . . Parts Self-Destructed . | . . . Prevented . | . . . Kills | -11 -10 -9 ------- Run | Scr Mat Mat Combat Hostiles Destroyed 10 | . 5 5 Guns 6 | . 5 1 AOE 3 | . . 3 Classes Destroyed 4 | . 2 2 Worker 1 | . . 1 Grunt 2 | . 2 . Sentry 2 | . . 2 Abomination 6 | . 3 3 Best Kill Streak 4 | . 4 2 Combat Bots Only 4 | . 4 2 Max Kills in Single Turn 1 | . 1 1 Gunslinging . | . . . Exploded 1 | . . 1 Melee . | . . . Uniques/NPCs Destroyed . | . . . Combat | -11 -10 -9 -------- Run | Scr Mat Mat Damage Taken 1155 | . 203 952 Core 225 | . 42 183 Absorbed by Shields . | . . . Core Remaining (%) 91 | 100 83 . Volleys Fired 41 | . 14 27 Largest 2 | . 2 2 Hottest 68 | . 46 68 Shots Fired 66 | . 28 38 Gun 47 | . 28 19 Cannon . | . . . Launcher 19 | . . 19 Special . | . . . Kinetic 46 | . 28 18 Thermal . | . . . Explosive 19 | . . 19 Electromagnetic 1 | . . 1 Robot Hit Streak 22 | . 8 22 Robot Miss Streak 2 | . 2 2 Penetration Max . | . . . Secondary Targets 2 | . 2 . Max Gunslinging Chain 1 | . 1 . Shots Hit Robots 52 | . 26 26 Core Hits 29 | . 13 16 Critical Hits . | . . . Critical Kills . | . . . Critical Parts Destroyed . | . . . Melee Attacks . | . . . Impact . | . . . Slashing . | . . . Piercing . | . . . Sneak Attacks . | . . . Combat Hostiles . | . . . Follow-up Attacks . | . . . Damage Inflicted 1286 | . 402 884 Guns 605 | . 402 203 Cannons . | . . . Explosions 681 | . . 681 Melee . | . . . Ramming . | . . . Kinetic 602 | . 402 200 Thermal . | . . . Explosive 681 | . . 681 Electromagnetic 3 | . . 3 Impact . | . . . Slashing . | . . . Piercing . | . . . Highest Corruption . | . . . Average Corruption . | . . . Corruption Purged . | . . . Overload Shots . | . . . Overflow Damage 21 | . . 21 Projectiles . | . . . Explosions 21 | . . 21 Melee . | . . . Knockbacks . | . . . Impact . | . . . Kinetic . | . . . Secondary . | . . . Self-Inflicted Damage 36 | . . 36 Shots 1 | . . 1 Rammed . | . . . Targets Rammed . | . . . Kicked . | . . . Crushed . | . . . Highest Temperature 345 | . 9 345 Average Temperature 88 | . 6 124 Received Heat Transfer 108 | . 72 36 Effects 1 | . . 1 Interference 1 | . . 1 Siege Activations . | . . . Robots Corrupted . | . . . Combat Hostiles . | . . . Parts Fried . | . . . Impact Corruptions . | . . . Robots Melted . | . . . Combat Hostiles . | . . . Parts Melted . | . . . Heat Transferred . | . . . Parts Sabotaged . | . . . Parts Stolen . | . . . Parts Stripped . | . . . Power Chain Reactions . | . . . Missiles Intercepted . | . . . Alert | -11 -10 -9 ------- Run | Scr Mat Mat Peak Influence 169 | . 50 169 Average Influence 46 | . 10 81 Maximum Alert Level . | . . . Low Security (%) 100 | . . . Level 1 . | . . . Level 2 . | . . . Level 3 . | . . . Level 4 . | . . . Level 5 . | . . . High Security . | . . . Max Security . | . . . Squads Dispatched 5 | . 2 3 Investigation . | . . . Extermination . | . . . Reinforcement 2 | . 1 1 Assault 3 | . 1 2 Garrison . | . . . Intercept . | . . . Construction Impeded . | . . . Haulers Reinforced . | . . . Stealth | -11 -10 -9 --------- Run | Scr Mat Mat Distress Signals 6 | . 2 4 Communications Jammed . | . . . Distress Signals . | . . . Times Spotted 14 | . 6 8 Peak Tracking Total 3 | . 2 3 Tactical Retreats 1 | . . 1 Traps | -11 -10 -9 ------- Run | Scr Mat Mat Traps Triggered . | . . . Indirectly . | . . . Trap Hack Attempts . | . . . Triggered . | . . . Disarmed . | . . . Reprogrammed . | . . . Reused . | . . . Traps Extracted . | . . . Installed . | . . . Triggered . | . . . Machines | -11 -10 -9 ---------- Run | Scr Mat Mat Machines Disabled 3 | . . 3 Max in Single Turn 1 | . . 1 Machines Sabotaged . | . . . Garrisons Compromised . | . . . Overloaded Fab Kills . | . . . Fab Network Shutdowns . | . . . Hacking | -11 -10 -9 --------- Run | Scr Mat Mat Machines Accessed 5 | . 1 4 Terminals 3 | . 1 2 Fabricators . | . . . Repair Stations . | . . . Recycling Units 2 | . . 2 Scanalyzers . | . . . Garrison Access . | . . . Total Hacks 16 | . 4 12 Successful 7 | . 1 6 Failed 9 | . 3 6 Catastrophic 2 | . 2 . Database Lockouts . | . . . Manual . | . . . Terminals 12 | . 4 8 Fabricators . | . . . Repair Stations . | . . . Recycling Units 4 | . . 4 Scanalyzers . | . . . Garrison Access . | . . . Terminal Hacks 5 | . 1 4 Record 3 | . . 3 Alert Level 1 | . . 1 Investigation Status 1 | . 1 . Fabricator Hacks . | . . . Repair Station Hacks . | . . . Recycling Unit Hacks 2 | . . 2 Report Inventory 2 | . . 2 Scanalyzer . | . . . Garrison Access Hacks . | . . . Unauthorized Hacks . | . . . Terminals . | . . . Fabricators . | . . . Repair Stations . | . . . Recycling Units . | . . . Scanalyzers . | . . . Garrison Access . | . . . Data Cores Recovered . | . . . Used . | . . . Hacking Detections 3 | . 1 2 Full Trace Events 1 | . 1 . Feedback Events . | . . . Feedback Blocked . | . . . Robot Schematics Acquired . | . . . Robots Built . | . . . Matter . | . . . Time . | . . . Total Robot Build Rating . | . . . Part Schematics Acquired . | . . . Parts Built . | . . . Matter . | . . . Time . | . . . Total Part Build Rating . | . . . Parts Repaired . | . . . Time . | . . . Parts Recycled . | . . . Recycled Matter . | . . . Retrieved Matter . | . . . Retrieved Components . | . . . Parts Scanalyzed . | . . . Part Schematics Acquired . | . . . Parts Damaged . | . . . Bothacking | -11 -10 -9 ------------ Run | Scr Mat Mat Used RIF Installer . | . . . Robots Hacked . | . . . Non-combat . | . . . Combat . | . . . Robot Hacks Applied . | . . . Relay Couplers Released . | . . . Robots Rewired . | . . . Allies Hacked . | . . . Hacks Repelled . | . . . Allies | -11 -10 -9 -------- Run | Scr Mat Mat Total Allies . | . . . Largest Group . | . . . Highest-Rated Group . | . . . Highest-Rated Ally . | . . . Total Orders . | . . . Ally Attacks . | . . . Total Damage . | . . . Kills . | . . . Allies Corrupted . | . . . Allies Melted . | . . . Intel | -11 -10 -9 ------- Run | Scr Mat Mat Robot Analysis Total . | . . . Derelict Logs Recovered . | . . . Drone Launches . | . . . Drone Recoveries . | . . . Exploration | -11 -10 -9 ------------- Run | Scr Mat Mat Turns Passed 775 | 97 267 411 Spaces Moved 506 | 55 127 324 Core 62 | 4 . 58 Treads 230 | 51 118 61 Legs . | . . . Wheels . | . . . Hover . | . . . Flight 214 | . 9 205 Fastest Speed 34 | 50 117 34 Average Speed 118 | 152 156 98 Slowest Speed 160 | 160 160 160 Overloaded Moves . | . . . Propulsion Burnouts . | . . . Robots Hopped . | . . . Cave-ins Triggered . | . . . Exploration Rate (%) 18 | 4 28 24 Regions Visited 2 Branch Regions . Pre-discovered Areas . | . . . Known Exits Taken . | . . . Unknown Exits Taken 2 | 1 1 . Scrap Searched . | . . . Spaces Dug . | . . . Terrain Destroyed 110 | . . 110 Melee . | . . . Projectile . | . . . AOE 110 | . . 110 Actions | -11 -10 -9 --------- Run | Scr Mat Mat Total 610 | 69 169 372 Wait . | . . . Move 504 | 54 126 324 Hop . | . . . Pick Up 25 | 9 13 3 Fast Attach 2 | . . 2 Attach 14 | 6 1 7 Detach 1 | . . 1 Swap 9 | . 5 4 Drop 14 | . 10 4 Fire 41 | . 14 27 Melee . | . . . Ram . | . . . Kick . | . . . Crush . | . . . Escape Stasis . | . . . Rewire . | . . . Trap . | . . . Miscellaneous . | . . . Route ------- -11/Scrapyard -10/Materials -9/Materials History --------- Turn | Location | Event 4 | -11/Scrapyard | Discovered new exit (range 16) 98 | -11/Scrapyard | Entered Materials 266 | -10/Materials | Discovered new exit (range 16) 320 | -10/Materials | Build established: Mutant 365 | -10/Materials | Entered another Materials area 365 | -9/Materials | Evolved 2 slots: Propulsion x2 725 | -9/Materials | Lost 8 parts (1p3n4w) 776 | -9/Materials | Self-destructed Last Messages --------------- Acquired 30 matter. Warp Anomaly forced to warp away. Acquired 18 matter. Fire Anomaly forced to warp away. Warp Anomaly forced to warp away. 23 Matter blinks away. Frozen by Ice Anomaly. 24 Matter blinks away. 28 Matter blinks away. 30 Matter blinks away. Warp Anomaly forced to warp away. 47 Matter blinks away. 24 Matter blinks away. 15 Matter blinks away. 33 Matter blinks away. ALERT: Dispatching additional forces to engage threats. 38 Matter blinks away. 13 Matter blinks away. 44 Matter blinks away. 39 Matter blinks away. Map ----- +----------------------------------------------------+ | ????????????????????# #?????????????##?##???? | | ????????????????????# """ ############## ## ###?? | | ????????????????????# """ + # # # ###?? | | ????????????????????# """ ########## # # # ##? | | ????????????????????# ######## # ## % ##? | | ????????????????????# # # # ##? | | ????????????????????####### # # ## #? | | ?????????????????????????## % #? | | ?????????????????????????## # ##? | | ?????????????????????????# # ## ##? | | ?????????????????????????# # ### | | ?????????????????????????## | | ??????????????????????????# "" | | ??????????????????????????# ! T" +##+#### | | ??????????????????????????# "" # # # #? | | ??????????????????????????# # # # #? | | ??????????????????????????## #### # # #? | | ????????????????????????############# ### #? | | ??????????????##????????# # #? | | ??????????????? ??????# """ # # #? | | ????????????? % ?????# """ # ## #+###### | | ?????????????? # ???# """ " + + % | | ??????????????? #% ?" # # """ """ | | ??????????????????##% %"" # # """ """ | | ??????????????##### ############# # %""" """ | | ?????????? @ # """ """ | | ?????????? # | | ?????????? % % % %% # | | ??????????? """ """ ######"Y"## | | ???????????%? ??""" %""" % ###??#"""#? | | ????????????????""" """A " n % #??#####? | | ???????????????? % % % n #???????? | | ???????????????? A #???????? | | ??????????????? ??? % %% % #???????? | | ??????????????????"######+######+###% #???????? | | ??????????????????"" ??? %????? %" #???????? | | ??????????????????""???? ???? % " #???????? | | ????????????????? "?????" ???# """ " #???????? | | ????????????????????????" ???# """ " #???????? | | ????????????????????????" ???# ??" # " ??????? | | ????????????????????????? ???#???? # # ??????? | | ???????????????????????????????????# ######?? | | ???????????????????????????????????# #?? | | ???????????????????????????????????# #?? | | ???????????????????????????????????# #?? | | ???????????????????????????????????######### #?? | | ???????????????????????????????????????????# #?? | | ????????????????????????????# ?????????????# #?? | | ????????????????????????????# ????######## ### | | ????????????????????????????# ### | +----------------------------------------------------+ Best States ------------- Heat Dissipation 50 Energy Generation 10 Energy Capacity 250 Matter Stores 279 Matter Capacity 300 Sight Range 16 Terrain Scan Density 10 ECM Strength 1 Evasion (%) 63 Recoil Reduction 2 Item Schematics ----------------- None Robot Schematics ------------------ None Fabricated ------------ Nothing Alien Tech Used ----------------- None Achievements -------------- None Challenges ------------ None Game ------ Seed KineticArmageddonInjector Manual? 0 Play Time 00:16:29 Cumulative 2.3 hours Start 2019.10.31 @ 03:14:17 End 2019.10.31 @ 03:28:57 Sessions 1 Manual Loads 0 Difficulty Rogue Special Mode Halloween2019/Abominations Game No. 5 Rogue 5 Adventurer 0 Explorer 0 Win Type - Total 0 Types 0/0/0/0/0/0/0 Lore% 2 Gallery% 7 Achievement% 4 Wizard Run 0 Options --------- ASCII 0 Keyboard 0 Movement Mouse Keybinds 0 Fullscreen 1 Font 18/SmallcapsGlow Map View 76x50 Tactical HUD 0 Map Filters NONE Filters NONE Steam 1 RUN: 7356c842-d37c-4a9a-9fb2-be63b3a6768a